[Event "HSG Open 2022 B"]
[Site "Hilversum, Netherlands"]
[Date "2022.06.17"]
[Round "2.1"]
[White "Burer, Audry"]
[Black "Ponomarev, Ivan"]
[Result "1/2-1/2"]
[TimeControl "1:50 + 0.10"]
[WhiteFideId "1018086"]
[WhiteElo "1913"]
[BlackElo "1672"]

1. e4 {[%clk 01:50:13]} {[%emt 00:00:06]} c5 {[%clk 01:50:14]} {[%emt
00:00:07]} 2. Nf3 {[%clk 01:50:13]} {[%emt 00:00:09]} e6 {[%clk 01:50:21]}
{[%emt 00:00:05]} 3. d3 {[%clk 01:50:06]} {[%emt 00:00:15]} d5 {[%clk
01:46:27]} {[%emt 00:04:05]} 4. Nbd2 {[%clk 01:50:05]} {[%emt 00:00:11]} Nc6
{[%clk 01:40:46]} {[%emt 00:05:51]} 5. g3 {[%clk 01:49:46]} {[%emt 00:00:28]}
Bd6 {[%clk 01:32:43]} {[%emt 00:08:15]} 6. Bg2 {[%clk 01:49:18]} {[%emt
00:00:37]} Nf6 {[%clk 01:28:17]} {[%emt 00:04:36]} 7. O-O {[%clk 01:47:44]}
{[%emt 00:01:43]} O-O {[%clk 01:19:43]} {[%emt 00:08:43]} 8. Re1 {[%clk
01:47:04]} {[%emt 00:00:50]} dxe4 {[%clk 01:16:32]} {[%emt 00:03:22]} 9. dxe4
{[%clk 01:46:04]} {[%emt 00:01:09]} e5 {[%clk 01:13:09]} {[%emt 00:03:34]} 10.
c3 {[%clk 01:44:31]} {[%emt 00:01:43]} h6 {[%clk 01:05:01]} {[%emt 00:08:24]}
11. Qc2 {[%clk 01:41:38]} {[%emt 00:06:52]} Be6 {[%clk 01:01:47]} {[%emt
00:00:02]} 12. Nf1 {[%clk 01:39:25]} {[%emt 00:01:49]} Qc7 {[%clk 00:55:39]}
{[%emt 00:06:18]} 13. Be3 {[%clk 01:36:28]} {[%emt 00:03:06]} Rfd8 {[%clk
00:52:46]} {[%emt 00:03:03]} 14. Rad1 {[%clk 01:25:20]} {[%emt 00:11:18]} Ng4
{[%clk 00:45:02]} {[%emt 00:07:55]} 15. h3 {[%clk 01:24:11]} {[%emt 00:01:19]}
Nxe3 {[%clk 00:44:13]} {[%emt 00:01:00]} 16. Nxe3 {[%clk 01:24:01]} {[%emt
00:00:19]} Rac8 {[%clk 00:34:39]} {[%emt 00:09:44]} 17. Kh2 {[%clk 01:20:29]}
{[%emt 00:03:42]} b5 {[%clk 00:31:29]} {[%emt 00:03:21]} 18. b3 {[%clk
01:12:42]} {[%emt 00:07:56]} a5 {[%clk 00:28:48]} {[%emt 00:02:51]} 19. Nd5
{[%clk 01:09:31]} {[%emt 00:03:21]} Qa7 {[%clk 00:24:54]} {[%emt 00:04:01]} 20.
Bf1 {[%clk 01:04:08]} {[%emt 00:05:37]} b4 {[%clk 00:22:58]} {[%emt 00:02:05]}
21. c4 {[%clk 01:00:01]} {[%emt 00:04:16]} Nd4 {[%clk 00:21:15]} {[%emt
00:01:53]} 22. Nxd4 {[%clk 00:58:48]} {[%emt 00:01:23]} cxd4 {[%clk 00:20:48]}
{[%emt 00:00:38]} 23. Qd3 {[%clk 00:53:45]} {[%emt 00:05:12]} Rf8 {[%clk
00:15:09]} {[%emt 00:05:50]} 24. Rd2 {[%clk 00:45:57]} {[%emt 00:07:58]}
1/2-1/2

[Event "HSG Open 2022 B"]
[Site "Hilversum, Netherlands"]
[Date "2022.06.18"]
[Round "3.1"]
[White "Harten, Bram van"]
[Black "Wastiaux, Roland"]
[Result "1/2-1/2"]
[TimeControl "1:50 + 0.10"]
[WhiteElo "1870"]
[BlackElo "1770"]

1. d4 {[%clk 01:49:41]} {[%emt 00:00:38]} d5 {[%clk 01:50:12]} {[%emt
00:00:09]} 2. c4 {[%clk 01:49:46]} {[%emt 00:00:05]} e6 {[%clk 01:50:11]}
{[%emt 00:00:12]} 3. Nf3 {[%clk 01:49:45]} {[%emt 00:00:10]} Nf6 {[%clk
01:50:10]} {[%emt 00:00:13]} 4. g3 {[%clk 01:49:51]} {[%emt 00:00:02]} Bb4+
{[%clk 01:49:56]} {[%emt 00:00:24]} 5. Bd2 {[%clk 01:49:56]} {[%emt 00:00:05]}
Be7 {[%clk 01:49:58]} {[%emt 00:00:08]} 6. Bg2 {[%clk 01:49:42]} {[%emt
00:00:23]} c6 {[%clk 01:49:18]} {[%emt 00:00:51]} 7. O-O {[%clk 01:48:36]}
{[%emt 00:01:16]} O-O {[%clk 01:49:05]} {[%emt 00:00:22]} 8. Qc2 {[%clk
01:48:36]} {[%emt 00:00:10]} b6 {[%clk 01:46:24]} {[%emt 00:02:52]} 9. b3
{[%clk 01:48:14]} {[%emt 00:00:32]} Nbd7 {[%clk 01:44:15]} {[%emt 00:02:19]} 10.
Nc3 {[%clk 01:46:43]} {[%emt 00:01:43]} Ba6 {[%clk 01:43:21]} {[%emt 00:01:03]}
11. cxd5 {[%clk 01:34:39]} {[%emt 00:12:14]} cxd5 {[%clk 01:41:54]} {[%emt
00:01:36]} 12. Rfe1 {[%clk 01:31:15]} {[%emt 00:03:34]} Rc8 {[%clk 01:41:39]}
{[%emt 00:00:25]} 13. Qb2 {[%clk 01:30:32]} {[%emt 00:00:53]} Bd6 {[%clk
01:31:37]} {[%emt 00:10:12]} 14. a4 {[%clk 01:21:54]} {[%emt 00:08:48]} Bb8
{[%clk 01:22:00]} {[%emt 00:09:46]} 15. b4 {[%clk 01:11:21]} {[%emt 00:10:44]}
Bc4 {[%clk 01:20:25]} {[%emt 00:01:44]} 16. Bf4 {[%clk 01:02:55]} {[%emt
00:08:37]} Bxf4 {[%clk 01:17:35]} {[%emt 00:03:00]} 17. gxf4 {[%clk 01:02:51]}
{[%emt 00:00:12]} Nh5 {[%clk 01:15:37]} {[%emt 00:02:09]} 18. e3 {[%clk
01:02:48]} {[%emt 00:00:14]} a6 {[%clk 01:13:27]} {[%emt 00:02:20]} 19. b5
{[%clk 01:00:08]} {[%emt 00:02:50]} a5 {[%clk 01:13:03]} {[%emt 00:00:34]} 20.
Rac1 {[%clk 00:57:32]} {[%emt 00:02:46]} Qe7 {[%clk 01:10:41]} {[%emt
00:02:31]} 21. Nd2 {[%clk 00:51:45]} {[%emt 00:05:58]} Bd3 {[%clk 00:58:18]}
{[%emt 00:12:33]} 22. Qb3 {[%clk 00:44:11]} {[%emt 00:07:44]} Bf5 {[%clk
00:55:15]} {[%emt 00:03:12]} 23. Ne2 {[%clk 00:40:17]} {[%emt 00:04:04]} Ndf6
{[%clk 00:52:36]} {[%emt 00:02:50]} 24. Ng3 {[%clk 00:37:37]} {[%emt 00:02:50]}
Nxg3 {[%clk 00:52:29]} {[%emt 00:00:17]} 25. hxg3 {[%clk 00:37:44]} {[%emt
00:00:03]} Rc7 {[%clk 00:50:14]} {[%emt 00:02:24]} 26. Rc6 {[%clk 00:32:56]}
{[%emt 00:04:59]} Rfc8 {[%clk 00:44:18]} {[%emt 00:06:06]} 27. Rec1 {[%clk
00:30:17]} {[%emt 00:02:49]} Rxc6 {[%clk 00:32:43]} {[%emt 00:11:44]} 28. Rxc6
{[%clk 00:28:27]} {[%emt 00:02:01]} Rxc6 {[%clk 00:32:19]} {[%emt 00:00:34]} 29.
bxc6 {[%clk 00:28:35]} {[%emt 00:00:02]} Qc7 {[%clk 00:32:07]} {[%emt
00:00:22]} 30. Qc3 {[%emt 00:08:52]} 1/2-1/2

[Event "HSG Open 2022 B"]
[Site "Hilversum, Netherlands"]
[Date "2022.06.18"]
[Round "3.2"]
[White "Dekker, Albert"]
[Black "Sanders, Thijmen"]
[Result "1/2-1/2"]
[TimeControl "1:50 + 0.10"]
[WhiteElo "1816"]
[BlackElo "1648"]

1. e4 {[%clk 01:50:12]} {[%emt 00:00:07]} c6 {[%clk 01:50:19]} {[%emt
00:00:03]} 2. d4 {[%clk 01:50:13]} {[%emt 00:00:09]} d5 {[%clk 01:50:27]}
{[%emt 00:00:04]} 3. e5 {[%clk 01:50:13]} {[%emt 00:00:07]} Bf5 {[%clk
01:50:33]} {[%emt 00:00:04]} 4. Nf3 {[%clk 01:50:10]} {[%emt 00:00:13]} e6
{[%clk 01:50:40]} {[%emt 00:00:06]} 5. Be2 {[%clk 01:50:12]} {[%emt 00:00:05]}
c5 {[%clk 01:50:29]} {[%emt 00:00:22]} 6. c3 {[%clk 01:48:46]} {[%emt
00:01:35]} Nc6 {[%clk 01:48:13]} {[%emt 00:02:27]} 7. O-O {[%clk 01:48:43]}
{[%emt 00:00:12]} Nge7 {[%clk 01:41:46]} {[%emt 00:06:38]} 8. dxc5 {[%clk
01:41:52]} {[%emt 00:07:01]} Ng6 {[%clk 01:40:01]} {[%emt 00:01:54]} 9. Be3
{[%clk 01:39:45]} {[%emt 00:02:15]} Ngxe5 {[%clk 01:36:51]} {[%emt 00:03:21]}
10. Nxe5 {[%clk 01:39:41]} {[%emt 00:00:14]} Nxe5 {[%clk 01:36:52]} {[%emt
00:00:10]} 11. Bd4 {[%clk 01:38:26]} {[%emt 00:01:24]} Nc6 {[%clk 01:33:16]}
{[%emt 00:03:47]} 12. Bb5 {[%clk 01:35:44]} {[%emt 00:02:52]} Rc8 {[%clk
01:26:12]} {[%emt 00:07:14]} 13. Nd2 {[%clk 01:35:12]} {[%emt 00:00:41]} Be7
{[%clk 01:25:35]} {[%emt 00:00:47]} 14. g4 {[%clk 01:33:42]} {[%emt 00:01:40]}
Bg6 {[%clk 01:24:23]} {[%emt 00:01:22]} 15. f4 {[%clk 01:33:01]} {[%emt
00:00:51]} O-O {[%clk 01:19:25]} {[%emt 00:05:08]} 16. f5 {[%clk 01:31:40]}
{[%emt 00:01:31]} Nxd4 {[%clk 01:18:40]} {[%emt 00:00:55]} 17. cxd4 {[%clk
01:31:29]} {[%emt 00:00:21]} exf5 {[%clk 01:15:13]} {[%emt 00:03:38]} 18. gxf5
{[%clk 01:31:30]} {[%emt 00:00:09]} Bxc5 {[%clk 01:12:57]} {[%emt 00:02:26]} 19.
fxg6 {[%clk 01:26:46]} {[%emt 00:04:53]} Bxd4+ {[%clk 01:13:05]} {[%emt
00:00:03]} 20. Kh1 {[%clk 01:26:37]} {[%emt 00:00:18]} hxg6 {[%clk 01:11:14]}
{[%emt 00:02:00]} 21. Qb3 {[%clk 01:21:46]} {[%emt 00:05:02]} a6 {[%clk
01:07:38]} {[%emt 00:03:46]} 22. Bd3 {[%clk 01:21:08]} {[%emt 00:00:48]} Rc6
{[%clk 01:05:41]} {[%emt 00:02:08]} 23. Rab1 {[%clk 01:15:13]} {[%emt
00:06:05]} Bb6 {[%clk 00:56:45]} {[%emt 00:09:05]} 24. Nf3 {[%clk 01:12:02]}
{[%emt 00:03:21]} Bc7 {[%clk 00:55:57]} {[%emt 00:00:58]} 25. Qb4 {[%clk
01:08:01]} {[%emt 00:04:11]} Bb8 {[%clk 00:54:11]} {[%emt 00:01:57]} 26. Qg4
{[%clk 01:06:31]} {[%emt 00:01:39]} Qc7 {[%clk 00:53:42]} {[%emt 00:00:40]} 27.
Qh4 {[%clk 00:54:59]} {[%emt 00:11:43]} Qf4 {[%clk 00:48:52]} {[%emt 00:04:59]}
28. Qxf4 {[%clk 00:50:50]} {[%emt 00:04:19]} Bxf4 {[%clk 00:48:59]} {[%emt
00:00:02]} 29. Nd4 {[%clk 00:50:49]} {[%emt 00:00:11]} Rf6 {[%clk 00:48:53]}
{[%emt 00:00:17]} 30. Nb3 {[%clk 00:49:29]} {[%emt 00:01:30]} Re8 {[%clk
00:48:36]} {[%emt 00:00:27]} 31. Nc5 {[%clk 00:49:06]} {[%emt 00:00:32]} g5
{[%clk 00:47:44]} {[%emt 00:01:02]} 32. Rfe1 {[%clk 00:48:02]} {[%emt
00:01:14]} Rc8 {[%clk 00:46:45]} {[%emt 00:01:10]} 33. Nxb7 {[%clk 00:47:06]}
{[%emt 00:01:05]} Rh6 {[%clk 00:46:11]} {[%emt 00:00:44]} 34. Re2 {[%clk
00:46:18]} {[%emt 00:00:58]} g6 {[%clk 00:45:36]} {[%emt 00:00:46]} 35. Na5
{[%clk 00:45:04]} {[%emt 00:01:23]} Kg7 {[%clk 00:45:28]} {[%emt 00:00:19]} 36.
Nb3 {[%clk 00:44:13]} {[%emt 00:01:01]} Rch8 {[%clk 00:45:28]} {[%emt
00:00:10]} 37. Rf1 {[%clk 00:39:07]} {[%emt 00:05:15]} Bxh2 {[%clk 00:42:56]}
{[%emt 00:02:42]} 38. Kg2 {[%clk 00:37:59]} {[%emt 00:01:18]} Rh4 {[%clk
00:30:44]} {[%emt 00:12:23]} 39. Rh1 {[%clk 00:30:48]} {[%emt 00:07:20]} Rg4+
{[%clk 00:27:25]} {[%emt 00:03:29]} 40. Kf1 {[%clk 00:29:37]} {[%emt 00:01:21]}
Rf4+ {[%clk 00:26:56]} {[%emt 00:00:40]} 41. Rf2 {[%clk 00:24:19]} {[%emt
00:05:29]} Rxf2+ {[%clk 00:26:39]} {[%emt 00:00:26]} 42. Kxf2 {[%clk 00:24:01]}
{[%emt 00:00:27]} Bg3+ {[%clk 00:26:41]} {[%emt 00:00:08]} 43. Kg2 {[%clk
00:23:56]} {[%emt 00:00:15]} Rxh1 {[%clk 00:26:38]} {[%emt 00:00:14]} 44. Kxh1
{[%clk 00:24:05]} {[%emt 00:00:01]} Be5 {[%clk 00:26:32]} {[%emt 00:00:17]} 45.
Bxa6 {[%clk 00:23:57]} {[%emt 00:00:17]} Bxb2 {[%clk 00:26:38]} {[%emt
00:00:03]} 46. Bb7 {[%clk 00:23:40]} {[%emt 00:00:27]} d4 {[%clk 00:26:15]}
{[%emt 00:00:34]} 47. a4 {[%clk 00:23:30]} {[%emt 00:00:20]} Bc3 {[%clk
00:25:59]} {[%emt 00:00:26]} 48. a5 {[%clk 00:23:38]} {[%emt 00:00:02]} Bxa5
{[%clk 00:25:32]} {[%emt 00:00:37]} 49. Nxa5 {[%clk 00:23:46]} {[%emt
00:00:02]} Kf6 {[%clk 00:24:31]} {[%emt 00:01:10]} 50. Kg2 {[%clk 00:23:38]}
{[%emt 00:00:16]} 1/2-1/2

[ePGN "0.1;DGT LiveChess/2.2.5"]

[Event "HSG Open 2022 B"]
[Site "Hilversum, Netherlands"]
[Date "2022.06.18"]
[Round "4.1"]
[White "Nijhuis, Daniel"]
[Black "Feng, Elysia"]
[Result "1-0"]
[TimeControl "1:50 + 0.10"]
[WhiteElo "1596"]
[BlackElo "1479"]

1. e4 {[%emt 00:00:03]} e5 {[%clk 01:50:15]} {[%emt 00:00:04]} 2. Nf3 {[%clk
01:50:25]} {[%emt 00:00:03]} Nc6 {[%clk 01:50:21]} {[%emt 00:00:04]} 3. Bb5
{[%clk 01:50:30]} {[%emt 00:00:05]} a6 {[%clk 01:50:22]} {[%emt 00:00:08]} 4.
Ba4 {[%clk 01:50:37]} {[%emt 00:00:04]} b5 {[%clk 01:49:55]} {[%emt 00:00:36]}
5. Bb3 {[%clk 01:50:41]} {[%emt 00:00:06]} Nf6 {[%clk 01:49:55]} {[%emt
00:00:10]} 6. O-O {[%clk 01:50:26]} {[%emt 00:00:25]} Be7 {[%clk 01:50:02]}
{[%emt 00:00:04]} 7. Re1 {[%clk 01:50:31]} {[%emt 00:00:04]} O-O {[%clk
01:49:24]} {[%emt 00:00:48]} 8. h3 {[%clk 01:50:28]} {[%emt 00:00:14]} Re8
{[%clk 01:48:11]} {[%emt 00:01:23]} 9. c3 {[%clk 01:50:23]} {[%emt 00:00:14]}
Bf8 {[%clk 01:47:02]} {[%emt 00:01:19]} 10. d4 {[%clk 01:48:19]} {[%emt
00:02:15]} d6 {[%clk 01:43:57]} {[%emt 00:03:14]} 11. d5 {[%clk 01:35:20]}
{[%emt 00:13:10]} Na5 {[%clk 01:41:05]} {[%emt 00:03:01]} 12. Bc2 {[%clk
01:35:08]} {[%emt 00:00:23]} Nc4 {[%clk 01:34:07]} {[%emt 00:07:08]} 13. a4
{[%emt 00:01:55]} Bd7 {[%clk 01:30:53]} {[%emt 00:03:23]} 14. Nbd2 {[%clk
01:28:18]} {[%emt 00:05:16]} Nb6 {[%clk 01:29:25]} {[%emt 00:01:37]} 15. a5
{[%clk 01:27:36]} {[%emt 00:00:53]} Nc8 {[%clk 01:29:17]} {[%emt 00:00:17]} 16.
Nf1 {[%clk 01:26:31]} {[%emt 00:01:15]} c6 {[%clk 01:28:07]} {[%emt 00:01:20]}
17. Ng3 {[%clk 01:22:23]} {[%emt 00:04:18]} cxd5 {[%clk 01:24:24]} {[%emt
00:03:54]} 18. exd5 {[%clk 01:22:04]} {[%emt 00:00:29]} Ne7 {[%clk 01:21:53]}
{[%emt 00:02:40]} 19. Bg5 {[%clk 01:05:31]} {[%emt 00:16:44]} Nfxd5 {[%clk
01:10:57]} {[%emt 00:11:05]} 20. Bxe7 {[%clk 00:57:02]} {[%emt 00:08:39]} Nxe7
{[%clk 01:10:06]} {[%emt 00:01:02]} 21. Bxh7+ {[%clk 00:56:26]} {[%emt
00:00:46]} Kh8 {[%clk 01:08:14]} {[%emt 00:02:01]} 22. Ng5 {[%clk 00:56:25]}
{[%emt 00:00:11]} Ng8 {[%clk 00:54:54]} {[%emt 00:13:30]} 23. Bxg8 {[%clk
00:54:41]} {[%emt 00:01:54]} Qxg5 {[%clk 00:54:39]} {[%emt 00:00:26]} 24. Bxf7
{[%clk 00:54:31]} {[%emt 00:00:20]} Rec8 {[%clk 00:53:02]} {[%emt 00:01:46]} 25.
Ne4 {[%clk 00:48:02]} {[%emt 00:06:39]} Qh6 {[%clk 00:49:14]} {[%emt 00:03:58]}
26. Qf3 {[%clk 00:45:25]} {[%emt 00:02:47]} Bc6 {[%clk 00:45:51]} {[%emt
00:03:33]} 27. Qg3 {[%clk 00:44:20]} {[%emt 00:01:16]} Be7 {[%clk 00:44:29]}
{[%emt 00:01:31]} 28. Rad1 {[%clk 00:43:23]} {[%emt 00:01:07]} Rf8 {[%clk
00:39:21]} {[%emt 00:05:18]} 29. Bd5 {[%clk 00:36:09]} {[%emt 00:07:24]} Bxd5
{[%clk 00:37:05]} {[%emt 00:02:26]} 30. Rxd5 {[%clk 00:36:12]} {[%emt
00:00:08]} Rf4 {[%clk 00:31:32]} {[%emt 00:05:42]} 31. Qd3 {[%clk 00:32:58]}
{[%emt 00:03:24]} Raf8 {[%clk 00:27:23]} {[%emt 00:04:20]} 32. Nxd6 {[%clk
00:22:48]} {[%emt 00:10:20]} Rxf2 {[%clk 00:25:29]} {[%emt 00:02:04]} 33. Ne4
{[%clk 00:15:42]} {[%emt 00:07:16]} Bh4 {[%clk 00:18:27]} {[%emt 00:07:12]} 34.
Rd1 {[%clk 00:12:56]} {[%emt 00:02:56]} R2f4 {[%clk 00:10:00]} {[%emt
00:08:37]} 35. Rxe5 {[%clk 00:10:41]} {[%emt 00:02:25]} Qg6 {[%clk 00:09:36]}
{[%emt 00:00:34]} 36. Ng5 {[%clk 00:09:38]} {[%emt 00:01:12]} Rf1+ {[%clk
00:08:00]} {[%emt 00:01:46]} 37. Rxf1 {[%clk 00:09:31]} {[%emt 00:00:18]} Rxf1+
{[%clk 00:07:40]} {[%emt 00:00:29]} 38. Qxf1 {[%clk 00:09:32]} {[%emt
00:00:10]} Bxg5 {[%clk 00:07:40]} {[%emt 00:00:10]} 39. Qf8+ {[%clk 00:09:30]}
{[%emt 00:00:11]} Kh7 {[%clk 00:07:47]} {[%emt 00:00:03]} 40. Qf5 {[%clk
00:09:31]} {[%emt 00:00:09]} Be3+ {[%clk 00:07:46]} {[%emt 00:00:11]} 41. Kh1
{[%clk 00:09:28]} {[%emt 00:00:13]} Bc1 {[%clk 00:07:23]} {[%emt 00:00:34]} 42.
Qxg6+ {[%clk 00:09:30]} {[%emt 00:00:08]} Kxg6 {[%clk 00:07:31]} {[%emt
00:00:01]} 43. Re6+ {[%clk 00:09:31]} {[%emt 00:00:10]} Kf5 {[%clk 00:07:38]}
{[%emt 00:00:02]} 44. Rxa6 {[%clk 00:09:36]} {[%emt 00:00:05]} Bxb2 {[%clk
00:07:44]} {[%emt 00:00:05]} 45. Rb6 {[%clk 00:09:38]} {[%emt 00:00:08]} Bxc3
{[%clk 00:07:44]} {[%emt 00:00:09]} 46. Rxb5+ {[%clk 00:09:43]} {[%emt
00:00:05]} 1-0

[Event "HSG Open 2022 B"]
[Site "Hilversum, Netherlands"]
[Date "2022.06.18"]
[Round "4.2"]
[White "Kazarjan, Gachatur"]
[Black "Harten, Bram van"]
[Result "0-1"]
[TimeControl "1:50 + 0.10"]
[WhiteElo "1548"]
[BlackElo "1870"]

1. e4 {[%clk 01:50:19]} c5 {[%clk 01:50:15]} {[%emt 00:00:05]} 2. Nf3 {[%clk
01:50:25]} {[%emt 00:00:05]} g6 {[%clk 01:50:20]} {[%emt 00:00:05]} 3. d4
{[%clk 01:50:31]} {[%emt 00:00:03]} cxd4 {[%clk 01:50:27]} {[%emt 00:00:04]} 4.
Nxd4 {[%clk 01:50:37]} {[%emt 00:00:04]} Bg7 {[%clk 01:50:29]} {[%emt
00:00:07]} 5. Nc3 {[%clk 01:50:43]} {[%emt 00:00:04]} Nc6 {[%clk 01:50:30]}
{[%emt 00:00:09]} 6. Be3 {[%clk 01:50:47]} {[%emt 00:00:06]} Nf6 {[%clk
01:50:35]} {[%emt 00:00:05]} 7. f3 {[%clk 01:50:52]} {[%emt 00:00:06]} O-O
{[%clk 01:50:39]} {[%emt 00:00:05]} 8. Bc4 {[%clk 01:50:44]} {[%emt 00:00:18]}
Qb6 {[%clk 01:50:41]} {[%emt 00:00:08]} 9. a3 {[%clk 01:38:29]} {[%emt
00:12:26]} Nxe4 {[%clk 01:38:29]} {[%emt 00:12:21]} 10. fxe4 {[%clk 01:33:05]}
{[%emt 00:05:34]} Bxd4 {[%clk 01:36:10]} {[%emt 00:02:29]} 11. Bxd4 {[%clk
01:33:09]} {[%emt 00:00:06]} Nxd4 {[%clk 01:24:33]} {[%emt 00:11:46]} 12. Nd5
{[%clk 01:30:35]} {[%emt 00:02:45]} Qc5 {[%clk 01:22:05]} {[%emt 00:02:38]} 13.
Qd3 {[%clk 01:25:26]} {[%emt 00:05:19]} b5 {[%clk 01:15:13]} {[%emt 00:07:03]}
14. O-O-O {[%clk 01:23:44]} {[%emt 00:01:51]} Nxc2 {[%clk 01:12:15]} {[%emt
00:03:08]} 15. Kxc2 {[%clk 01:19:54]} {[%emt 00:04:00]} bxc4 {[%clk 01:03:46]}
{[%emt 00:08:40]} 16. Qd4 {[%clk 01:18:34]} {[%emt 00:01:30]} Qd6 {[%clk
00:56:58]} {[%emt 00:06:57]} 17. Rhf1 {[%clk 01:16:07]} {[%emt 00:02:37]} f6
{[%clk 00:49:22]} {[%emt 00:07:46]} 18. Qc3 {[%clk 01:10:19]} {[%emt 00:05:58]}
Qe6 {[%clk 00:43:40]} {[%emt 00:05:52]} 19. Rde1 {[%clk 01:05:54]} {[%emt
00:04:34]} Rb8 {[%clk 00:41:06]} {[%emt 00:02:44]} 20. Qd4 {[%clk 00:55:05]}
{[%emt 00:11:00]} Bb7 {[%clk 00:35:38]} {[%emt 00:05:39]} 21. Qc5 {[%clk
00:50:42]} {[%emt 00:04:32]} d6 {[%clk 00:32:16]} {[%emt 00:03:32]} 22. Qxa7
{[%clk 00:42:09]} {[%emt 00:08:44]} Qe5 {[%clk 00:25:51]} {[%emt 00:06:34]} 23.
Nc3 {[%clk 00:39:46]} {[%emt 00:02:34]} Ba8 {[%clk 00:19:26]} {[%emt 00:06:34]}
24. Re2 {[%clk 00:33:57]} {[%emt 00:05:59]} Rb7 {[%clk 00:17:08]} {[%emt
00:02:28]} 25. Qa4 {[%clk 00:27:25]} {[%emt 00:06:42]} Rfb8 {[%clk 00:15:31]}
{[%emt 00:01:47]} 26. Kc1 {[%clk 00:25:33]} {[%emt 00:02:02]} Qc5 {[%clk
00:11:47]} {[%emt 00:03:54]} 27. Rd1 {[%clk 00:24:47]} {[%emt 00:00:56]} Ra7
{[%clk 00:10:55]} {[%emt 00:01:02]} 28. Qc2 {[%clk 00:23:28]} {[%emt 00:01:30]}
Rxa3 {[%clk 00:09:47]} {[%emt 00:01:18]} 29. bxa3 {[%clk 00:23:33]} {[%emt
00:00:05]} Qxa3+ {[%clk 00:09:53]} {[%emt 00:00:04]} 30. Kd2 {[%clk 00:23:34]}
{[%emt 00:00:08]} Rb2 {[%clk 00:09:58]} {[%emt 00:00:05]} 31. Ke1 {[%clk
00:23:43]} {[%emt 00:00:01]} Rxc2 {[%clk 00:09:22]} {[%emt 00:00:47]} 32. Rxc2
{[%clk 00:23:52]} {[%emt 00:00:01]} Bc6 {[%clk 00:08:32]} {[%emt 00:01:00]} 33.
Rb1 {[%clk 00:22:56]} {[%emt 00:01:05]} Qc5 {[%clk 00:08:02]} {[%emt 00:00:40]}
34. Re2 {[%clk 00:21:28]} {[%emt 00:01:38]} Qg1+ {[%clk 00:07:00]} {[%emt
00:01:12]} 35. Kd2 {[%clk 00:21:32]} {[%emt 00:00:07]} Qxh2 {[%clk 00:07:03]}
{[%emt 00:00:06]} 36. Rb4 {[%clk 00:21:30]} {[%emt 00:00:12]} Qf4+ {[%clk
00:06:46]} {[%emt 00:00:27]} 37. Kc2 {[%clk 00:21:34]} {[%emt 00:00:06]} Bd7
{[%clk 00:06:07]} {[%emt 00:00:48]} 38. Nd5 {[%clk 00:21:14]} {[%emt 00:00:31]}
Qf1 {[%clk 00:05:43]} {[%emt 00:00:34]} 39. Kd2 {[%clk 00:20:51]} {[%emt
00:00:34]} Kf7 {[%clk 00:05:44]} {[%emt 00:00:09]} 40. Rb2 {[%clk 00:20:09]}
{[%emt 00:00:52]} Bg4 {[%clk 00:05:38]} {[%emt 00:00:16]} 41. Re3 {[%clk
00:20:06]} {[%emt 00:00:13]} Be6 {[%clk 00:04:44]} {[%emt 00:01:03]} 42. Rb7
{[%clk 00:19:14]} {[%emt 00:01:02]} Bxd5 {[%clk 00:04:34]} {[%emt 00:00:21]} 43.
exd5 {[%clk 00:19:16]} {[%emt 00:00:08]} Qxg2+ {[%clk 00:04:34]} {[%emt
00:00:09]} 44. Re2 {[%clk 00:19:21]} {[%emt 00:00:06]} Qxd5+ {[%clk 00:04:41]}
{[%emt 00:00:03]} 0-1

[ePGN "0.1;DGT LiveChess/2.2.5"]